bitfinex/quotes_BTCUSD_20250615
["timestamp","ask_amount","ask_price","bid_price","bid_amount"]
[1749974674859,1.79808644,105580.0,105570.0,0.01982504]
[1749974675064,1.79808644,105580.0,105570.0,0.00204751]
[1749974675282,1.80697819,105580.0,105570.0,0.01982552]
[1749974675507,1.80697819,105580.0,105570.0,0.00204751]
[1749974675713,1.79808644,105580.0,105570.0,0.01982525]
[1749974675928,1.79808644,105580.0,105570.0,0.01982529]
[1749974676132,1.80697819,105580.0,105570.0,0.03760307]
[1749974676340,1.80697819,105580.0,105570.0,0.037603]
[1749974676478,1.79808644,105580.0,105570.0,0.037603]
[1749974676702,1.80697819,105580.0,105570.0,0.037603]
[1749974676915,1.79808461,105580.0,105570.0,0.037603]
[1749974677115,1.79808461,105580.0,105570.0,0.03760187]
[1749974677311,1.80697636,105580.0,105570.0,0.01982529]
[1749974677492,1.79808461,105580.0,105570.0,0.01982529]
[1749974677693,1.80697636,105580.0,105570.0,0.01982529]
[1749974677903,1.80697636,105580.0,105570.0,0.03760182]
[1749974678107,1.80697636,105580.0,105570.0,0.01982529]
[1749974678310,1.78288461,105580.0,105570.0,0.01982529]
[1749974678523,1.79177636,105580.0,105570.0,0.03760182]
[1749974678751,0.73270254,105580.0,105570.0,0.01982529]
[1749974678988,1.30208119,105580.0,105570.0,0.03760131]
[1749974679205,1.30208096,105580.0,105570.0,0.03759954]
[1749974679420,1.30208099,105580.0,105570.0,0.03759954]
[1749974679640,1.29318969,105580.0,105570.0,0.03759964]
[1749974679871,1.30208099,105580.0,105570.0,0.03759964]
[1749974680079,1.29318969,105580.0,105570.0,0.03760001]
[1749974680286,1.30208105,105580.0,105570.0,0.01982529]
[1749974680526,1.29318969,105580.0,105570.0,0.01982529]
[1749974680783,1.30208106,105580.0,105570.0,0.03760037]
[1749974681043,1.29318969,105580.0,105570.0,0.03760038]
[1749974681251,1.30208106,105580.0,105570.0,0.03760043]
[1749974681680,1.30208106,105580.0,105570.0,0.03760055]
[1749974681896,1.30208106,105580.0,105570.0,0.01982529]
[1749974681897,1.30208108,105580.0,105570.0,0.01982529]
[1749974682124,1.29318969,105580.0,105570.0,0.03760103]
[1749974682347,1.29318969,105580.0,105570.0,0.0376011]
[1749974682554,1.30208117,105580.0,105570.0,0.01982529]
[1749974682968,1.30208117,105580.0,105570.0,0.03760091]
[1749974683660,1.29318969,105580.0,105570.0,0.03760091]
[1749974683881,1.30208117,105580.0,105570.0,0.03760093]
[1749974684315,1.29318969,105580.0,105570.0,0.01982529]
[1749974684552,1.29318969,105580.0,105570.0,0.03760094]
[1749974684805,1.30208117,105580.0,105570.0,0.01982529]
[1749974685241,1.29318969,105580.0,105570.0,0.03760096]
[1749974685454,1.30208117,105580.0,105570.0,0.03760096]
[1749974685678,1.29318969,105580.0,105570.0,0.03760073]
[1749974685895,1.30208117,105580.0,105570.0,0.03760071]
[1749974686177,1.30208117,105580.0,105570.0,0.01982529]
[1749974686423,1.29318969,105580.0,105570.0,0.03760088]
[1749974686642,1.29318969,105580.0,105570.0,0.03760084]
[1749974686863,1.30208114,105580.0,105570.0,0.03760117]
[1749974687084,1.30208115,105580.0,105570.0,0.01982529]
[1749974687343,1.29318969,105580.0,105570.0,0.01982529]
[1749974687546,1.30208115,105580.0,105570.0,0.03760085]
[1749974687762,1.30208115,105580.0,105570.0,0.03760082]
[1749974687978,1.30208115,105580.0,105570.0,0.01982529]
[1749974688217,1.32162771,105580.0,105570.0,0.03760082]
[1749974688417,1.32162771,105580.0,105570.0,0.0376013]
[1749974688676,1.32162771,105580.0,105570.0,0.03760136]
[1749974688677,1.33051925,105580.0,105570.0,0.03760136]
[1749974689151,1.33051925,105580.0,105570.0,0.03760123]
[1749974689417,1.33051925,105580.0,105570.0,0.01982529]
[1749974689674,1.33051925,105580.0,105570.0,0.03760123]
[1749974690166,1.32162771,105580.0,105570.0,0.03760124]
[1749974690401,1.33051925,105580.0,105570.0,0.03760124]
[1749974691077,1.32162771,105580.0,105570.0,0.03760124]
[1749974691304,1.32162771,105580.0,105570.0,0.03760123]
[1749974691528,1.33051925,105580.0,105570.0,0.03760123]
[1749974691978,1.32162771,105580.0,105570.0,0.03760123]
[1749974692200,1.33051925,105580.0,105570.0,0.03760123]
[1749974692439,1.76628461,105580.0,105570.0,0.03760127]
[1749974692852,1.77517615,105580.0,105570.0,0.03760125]
[1749974693078,1.76628461,105580.0,105570.0,0.03760125]
[1749974693298,1.77517619,105580.0,105570.0,0.01982529]
[1749974693522,1.79177621,105580.0,105570.0,0.03760339]
[1749974693746,1.79177621,105580.0,105570.0,0.0376033]
[1749974693966,1.7917762,105580.0,105570.0,0.01982529]
[1749974694604,1.7917762,105580.0,105570.0,0.03760317]
[1749974695054,1.78288461,105580.0,105570.0,0.01982529]
[1749974695264,1.7917762,105580.0,105570.0,0.03760318]
[1749974695477,1.78288461,105580.0,105570.0,0.01982529]
[1749974695688,1.79177632,105580.0,105570.0,0.01982529]
[1749974695895,1.79177632,105580.0,105570.0,0.0376035]
[1749974696143,1.78288461,105580.0,105570.0,0.01982529]
[1749974696346,1.79177632,105580.0,105570.0,0.03760342]
[1749974696558,1.79938461,105580.0,105570.0,0.01982529]
[1749974697008,1.80827635,105580.0,105570.0,0.01982529]
[1749974697232,1.79938461,105580.0,105570.0,0.01982529]
[1749974697457,1.80827635,105580.0,105570.0,0.01982529]
[1749974698096,1.80827634,105580.0,105570.0,0.01982529]
[1749974698303,1.79938461,105580.0,105570.0,0.01982529]
[1749974698517,1.80827635,105580.0,105570.0,0.01982529]
[1749974700394,1.80827639,105580.0,105570.0,0.01982529]
[1749974700623,1.79938461,105580.0,105570.0,0.01982529]
[1749974700853,1.8082764,105580.0,105570.0,0.01982529]
[1749974701065,1.79938461,105580.0,105570.0,0.01982529]
[1749974701272,1.8082764,105580.0,105570.0,0.01982529]
[1749974702600,1.79938461,105580.0,105570.0,0.01982529]
[1749974702821,1.8082764,105580.0,105570.0,0.01982529]
[1749974704287,1.79938461,105580.0,105570.0,0.01982529]
[1749974705134,1.8082764,105580.0,105570.0,0.01982529]
[1749974705758,1.79938461,105580.0,105570.0,0.01982529]
[1749974705974,1.8082764,105580.0,105570.0,1e-08]
[1749974706193,1.7917764,105580.0,105570.0,1e-08]
[1749974706406,1.79938461,105580.0,105570.0,1e-08]
[1749974706628,1.80827657,105580.0,105570.0,1e-08]
[1749974706846,0.5389388,105560.0,105550.0,0.07066]
[1749974707056,1.00634612,105560.0,105550.0,0.07066]
[1749974709251,1.00634612,105560.0,105550.0,0.07166]
[1749974709457,1.00634612,105560.0,105550.0,0.05576]
[1749974709891,1.00634612,105560.0,105550.0,0.0166]
[1749974710142,1.00634612,105560.0,105550.0,0.05576]
[1749974713001,1.00634612,105560.0,105550.0,0.04016]
[1749974716508,1.00634612,105560.0,105550.0,0.001]
[1749974716690,1.00634612,105560.0,105550.0,0.04016]
[1749974718891,1.00634612,105560.0,105550.0,0.05794665]
[1749974719368,1.00634612,105560.0,105550.0,0.04016]
[1749974719575,1.00634612,105560.0,105550.0,0.05794665]
[1749974719783,1.00634612,105560.0,105550.0,0.04016]
[1749974719990,1.00634612,105560.0,105550.0,0.05794665]
[1749974720820,1.00634612,105560.0,105550.0,0.05794642]
[1749974721026,1.00634612,105560.0,105550.0,0.04016]
[1749974721232,1.00634612,105560.0,105550.0,0.05794635]
[1749974721456,1.00634612,105560.0,105550.0,0.05794628]
[1749974721667,1.00634612,105560.0,105550.0,0.04016]
[1749974721878,1.00634612,105560.0,105550.0,0.05794635]
[1749974722158,1.00634612,105560.0,105550.0,0.04016]
[1749974722317,1.02194612,105560.0,105550.0,0.05794664]
[1749974722724,1.02194612,105560.0,105550.0,0.04016]
[1749974723110,1.02194612,105560.0,105550.0,0.05794603]
[1749974723317,1.00634612,105560.0,105550.0,0.04016]
[1749974723739,1.00634612,105560.0,105550.0,0.05794603]
[1749974723947,1.00634612,105560.0,105550.0,0.05794567]
[1749974724144,1.00634612,105560.0,105550.0,0.04016]
[1749974724348,1.00634612,105560.0,105550.0,0.05794597]
[1749974724514,1.15946612,105560.0,105550.0,0.05794597]
[1749974724714,1.15946612,105560.0,105550.0,0.05794573]
[1749974724926,1.15946612,105560.0,105550.0,0.05794559]
[1749974725152,1.15946612,105560.0,105550.0,0.05794516]
[1749974725576,1.15946612,105560.0,105550.0,0.05794517]
[1749974726365,1.15946612,105560.0,105550.0,0.05794542]
[1749974726598,1.15946612,105560.0,105550.0,0.05794534]
[1749974726816,1.15946612,105560.0,105550.0,0.05794549]
[1749974727139,1.15946612,105560.0,105550.0,0.05794541]
[1749974727345,1.15946612,105560.0,105550.0,0.05794576]
[1749974727551,1.15946612,105560.0,105550.0,0.05794577]
[1749974727992,1.15946612,105560.0,105550.0,0.04016]
[1749974728332,1.15946612,105560.0,105550.0,0.05794577]
[1749974728549,1.15946612,105560.0,105550.0,0.04016]
[1749974728755,1.15946612,105560.0,105550.0,0.05794598]
[1749974729295,1.15946612,105560.0,105550.0,0.04016]
[1749974729746,1.15946612,105560.0,105550.0,0.05794627]
[1749974729964,1.15946612,105560.0,105550.0,0.04016]
[1749974730154,1.15946612,105560.0,105550.0,0.05794627]
[1749974730383,1.15946612,105560.0,105550.0,0.05794638]
[1749974730613,1.15946612,105560.0,105550.0,0.04016]
[1749974730833,1.15946612,105560.0,105550.0,0.05794627]
[1749974731204,1.15946612,105560.0,105550.0,0.04016]
[1749974731404,1.15946612,105560.0,105550.0,0.05794627]
[1749974731615,1.15946612,105560.0,105550.0,0.05794323]
[1749974731830,1.15946612,105560.0,105550.0,0.04016]
[1749974732039,1.15946612,105560.0,105550.0,0.05794329]
[1749974732327,1.27110788,105560.0,105550.0,0.01878327]
[1749974732542,1.27110788,105560.0,105550.0,0.04016]
[1749974732543,1.28640788,105560.0,105550.0,0.04016]
[1749974732775,1.28640788,105560.0,105550.0,0.0579434]
[1749974732988,1.28640788,105560.0,105550.0,0.05794345]
[1749974733216,1.28640788,105560.0,105550.0,0.04016]
[1749974733425,1.28640788,105560.0,105550.0,0.05794348]
[1749974733638,1.27110788,105560.0,105550.0,0.04016]
[1749974734070,1.27110788,105560.0,105550.0,0.0579435]
[1749974734280,1.27110788,105560.0,105550.0,0.04016]
[1749974734477,1.27110788,105560.0,105550.0,0.05794358]
[1749974734743,1.27110788,105560.0,105550.0,0.05794352]
[1749974734948,1.27110788,105560.0,105550.0,0.05794356]
[1749974735157,1.27110788,105560.0,105550.0,0.05794353]
[1749974735365,1.27110788,105560.0,105550.0,0.04016]
[1749974735780,1.27110788,105560.0,105550.0,0.05794347]
[1749974735986,1.27110788,105560.0,105550.0,0.04016]
[1749974736195,1.27110788,105560.0,105550.0,0.05794362]
[1749974736404,1.32382406,105560.0,105550.0,0.05794358]
[1749974736664,1.29955375,105560.0,105550.0,0.0579435]
[1749974736913,1.29955375,105560.0,105550.0,0.05794349]
[1749974737157,1.29955375,105560.0,105550.0,0.05794355]
[1749974737375,1.29955375,105560.0,105550.0,0.05794339]
[1749974737806,1.29955375,105560.0,105550.0,0.04016]
[1749974738026,1.29955375,105560.0,105550.0,0.05794362]
[1749974738249,1.29955375,105560.0,105550.0,0.04016]
[1749974738459,1.29955375,105560.0,105550.0,0.05794362]
[1749974738668,1.29955375,105560.0,105550.0,0.04016]
[1749974738876,1.29955375,105560.0,105550.0,0.05794366]
[1749974739084,1.29955375,105560.0,105550.0,0.05794383]
[1749974739291,1.29955375,105560.0,105550.0,0.04016]
[1749974739526,1.29955375,105560.0,105550.0,0.05794383]
[1749974739746,1.29955375,105560.0,105550.0,0.0579438]
[1749974739960,1.29955375,105560.0,105550.0,0.04016]
[1749974740459,1.29955375,105560.0,105550.0,0.01878381]
[1749974740671,1.29955375,105560.0,105550.0,0.05794381]
[1749974741314,1.29955375,105560.0,105550.0,0.04016]
[1749974741581,1.29955375,105560.0,105550.0,0.05794386]
[1749974741833,1.29955375,105560.0,105550.0,0.05794385]
[1749974742309,1.29955375,105560.0,105550.0,0.04016]
[1749974742529,1.29955375,105560.0,105550.0,0.05794692]
[1749974742716,1.29955375,105560.0,105550.0,0.05794689]
[1749974743412,1.29955375,105560.0,105550.0,0.04016]
[1749974744071,1.29955375,105560.0,105550.0,0.05794688]
[1749974744521,1.29955375,105560.0,105550.0,0.05794689]
[1749974744959,1.29955375,105560.0,105550.0,0.04016]
[1749974745148,1.29955375,105560.0,105550.0,0.0579469]
[1749974745843,1.29955375,105560.0,105550.0,0.05794686]
[1749974746056,1.29955375,105560.0,105550.0,0.05794689]
[1749974746253,1.29955375,105560.0,105550.0,0.05794686]
[1749974746504,1.29955375,105560.0,105550.0,0.05794687]
[1749974746950,1.29955375,105560.0,105550.0,0.04016]
[1749974747382,1.31465375,105560.0,105550.0,0.05794689]
[1749974747608,1.31465375,105560.0,105550.0,0.04016]
[1749974747836,1.31465375,105560.0,105550.0,0.05794701]
[1749974748050,1.31465375,105560.0,105550.0,0.01877932]
[1749974748322,1.31465375,105560.0,105530.0,0.0311]
[1749974748323,0.0094749,105540.0,105530.0,0.0311]
[1749974748547,1.08829031,105540.0,105530.0,0.04887987]
[1749974748759,1.08829031,105540.0,105530.0,0.05835612]
[1749974749022,1.09776512,105540.0,105530.0,0.28703584]
[1749974749453,1.12203543,105540.0,105530.0,0.29651163]
[1749974749724,1.09781255,105540.0,105530.0,0.29651163]
[1749974750363,0.65415565,105540.0,105530.0,0.29951163]
[1749974750711,0.66743082,105540.0,105530.0,0.09304031]
[1749974751082,1.11208772,105540.0,105530.0,0.10251628]
[1749974751503,1.45208772,105540.0,105530.0,0.10251628]
[1749974752031,1.45208772,105540.0,105530.0,0.09304031]
[1749974752239,1.48053359,105540.0,105530.0,0.08711678]
[1749974752501,1.48053359,105540.0,105530.0,0.08711679]
[1749974752763,1.48053359,105540.0,105530.0,0.0871168]
[1749974753163,1.48053359,105540.0,105530.0,0.06933597]
[1749974753380,1.48053359,105540.0,105530.0,0.0871168]
[1749974753827,1.48053359,105540.0,105530.0,0.06933597]
[1749974754037,1.48053359,105540.0,105530.0,0.0871168]
[1749974754254,0.58174489,105540.0,105530.0,0.27663642]
[1749974754466,1.03587669,105540.0,105530.0,0.31218791]
[1749974754679,1.03587669,105540.0,105530.0,0.3121879]
[1749974755140,1.03587669,105540.0,105530.0,0.28376043]
[1749974755347,1.03587669,105540.0,105530.0,0.30271192]
[1749974755980,1.03587669,105540.0,105530.0,0.24315553]
[1749974756191,1.02640179,105540.0,105530.0,0.24315553]
[1749974756395,1.47105869,105540.0,105530.0,0.24315553]
[1749974756602,1.47105869,105540.0,105530.0,0.06194087]
[1749974757496,1.47105869,105540.0,105530.0,0.04416]
[1749974757694,1.47105869,105540.0,105530.0,0.06194087]
[1749974758134,1.47105869,105540.0,105530.0,0.04416]
[1749974758354,0.58174489,105540.0,105530.0,0.06194089]
[1749974758577,1.47105869,105540.0,105530.0,0.04416]
[1749974758792,1.47105869,105540.0,105530.0,0.07141686]
[1749974759004,1.47105869,105540.0,105530.0,0.05363597]
[1749974759217,1.47105869,105540.0,105530.0,0.07141686]
[1749974759647,1.47105869,105540.0,105530.0,0.27653642]
[1749974759891,1.47105869,105540.0,105530.0,0.28483132]
[1749974760103,1.47105869,105540.0,105530.0,0.29313642]
[1749974760319,1.02640179,105540.0,105530.0,0.29313642]
[1749974760542,1.02640179,105540.0,105530.0,0.08583597]
[1749974760747,1.02640179,105540.0,105530.0,0.10361686]
[1749974761408,1.02640179,105540.0,105530.0,0.10362455]
[1749974761821,1.03135406,105540.0,105530.0,0.30261999]
[1749974762036,1.03135406,105540.0,105530.0,0.07754858]
[1749974762251,1.05562437,105540.0,105530.0,0.27654411]
[1749974762461,1.03135406,105540.0,105530.0,0.27654411]
[1749974762920,1.03135406,105540.0,105530.0,0.08702455]
[1749974763585,1.03135406,105540.0,105530.0,0.3026199]
[1749974764029,1.03135406,105540.0,105530.0,0.28483132]
[1749974764249,1.03135406,105540.0,105530.0,0.3026199]
[1749974764685,1.03135406,105540.0,105530.0,0.25875553]
[1749974765076,1.03135406,105540.0,105530.0,0.28601999]
[1749974765726,1.03135406,105540.0,105530.0,0.26823141]
[1749974765938,1.03135406,105540.0,105530.0,0.24685999]
[1749974766145,1.03135406,105540.0,105530.0,0.26823141]
[1749974766349,1.05562437,105540.0,105530.0,0.28602008]
[1749974766555,1.03135406,105540.0,105530.0,0.28602008]
[1749974766980,1.03135406,105540.0,105530.0,0.26823141]
[1749974767183,1.03135406,105540.0,105530.0,0.06923597]
[1749974767421,1.47601096,105540.0,105530.0,0.08702464]
[1749974767634,1.47601096,105540.0,105530.0,0.06923597]
[1749974768060,1.47601096,105540.0,105530.0,0.08698276]
[1749974768276,1.47601096,105540.0,105530.0,0.06923597]
[1749974768501,1.47601096,105540.0,105530.0,0.08698276]
[1749974768971,1.47601096,105540.0,105530.0,0.07750679]
[1749974769854,1.47601096,105540.0,105530.0,0.06190679]
[1749974770303,1.47601096,105540.0,105530.0,0.05942678]
[1749974770694,1.47601096,105540.0,105530.0,0.05942679]
[1749974771783,1.47601096,105540.0,105530.0,0.04168]
[1749974772196,1.47601096,105540.0,105530.0,0.05942679]
[1749974773837,1.47601096,105540.0,105530.0,0.04168]
[1749974774044,1.47601096,105540.0,105530.0,0.05942679]
[1749974774250,1.47601096,105540.0,105530.0,0.04168]
[1749974774499,1.47601096,105540.0,105530.0,0.05942679]
[1749974775650,1.47601096,105540.0,105530.0,0.04168]
[1749974775855,1.47601096,105540.0,105530.0,0.05942679]
[1749974776057,1.47601096,105540.0,105530.0,0.24894635]
[1749974776518,1.47601096,105540.0,105530.0,0.25842232]
[1749974777246,1.47601096,105540.0,105530.0,0.05942679]
[1749974778245,1.47601096,105540.0,105530.0,0.05946866]
[1749974778453,1.47601096,105540.0,105530.0,0.05946865]
[1749974778657,1.47601096,105540.0,105530.0,0.04168]
[1749974778874,1.03135406,105540.0,105530.0,0.05946865]
[1749974779293,1.03135406,105540.0,105530.0,0.04168]
[1749974779474,1.03135406,105540.0,105530.0,0.05946865]
[1749974780549,1.47601096,105540.0,105530.0,0.05946865]
[1749974781010,1.47601096,105540.0,105530.0,0.04168]
[1749974781236,1.51390195,105540.0,105530.0,0.05946865]
[1749974781464,1.51390195,105540.0,105530.0,0.04168]
[1749974781685,1.51390195,105540.0,105530.0,0.05946865]
[1749974782345,1.51390195,105540.0,105530.0,0.04168]
[1749974782795,1.51390195,105540.0,105530.0,0.05946865]
[1749974783036,1.51390195,105540.0,105530.0,0.04168]
[1749974783255,1.51390195,105540.0,105530.0,0.05946865]
[1749974783723,1.51390195,105540.0,105530.0,0.04168]
[1749974783932,1.51390195,105540.0,105530.0,0.05946865]
[1749974784532,1.51390195,105540.0,105530.0,0.04168]
[1749974784738,1.51390195,105540.0,105530.0,0.00252]
[1749974784974,1.52940195,105540.0,105530.0,0.05946866]
[1749974785218,1.52940195,105540.0,105530.0,0.04168]
[1749974785676,1.52940195,105540.0,105530.0,0.05946865]
[1749974785908,1.52940195,105540.0,105530.0,0.04168]
[1749974786119,1.52940195,105540.0,105530.0,0.05946865]
[1749974786301,1.52940195,105540.0,105530.0,0.04168]
[1749974786502,1.52940195,105540.0,105530.0,0.05946865]
[1749974786647,1.52940195,105540.0,105530.0,0.04168]
[1749974787055,1.52940195,105540.0,105530.0,0.05946865]
[1749974787283,1.52940195,105540.0,105530.0,0.04168]
[1749974787482,0.64008815,105540.0,105530.0,0.04168]
[1749974787689,1.52941835,105540.0,105530.0,0.04168]
[1749974787896,1.52941835,105540.0,105530.0,0.05946865]
[1749974788588,1.52941835,105540.0,105530.0,0.04168]
[1749974788796,1.52941835,105540.0,105530.0,0.05946865]
[1749974789001,1.52941835,105540.0,105530.0,0.04168]
[1749974789211,1.52941835,105540.0,105530.0,0.05946865]
[1749974789640,1.51391835,105540.0,105530.0,0.05946865]
[1749974790058,1.51391835,105540.0,105530.0,0.06894462]
[1749974791033,1.51391835,105540.0,105530.0,0.05115597]
[1749974791264,1.51391835,105540.0,105530.0,0.06894462]
[1749974791486,1.51390321,105540.0,105530.0,0.05946865]
[1749974791922,1.51390321,105540.0,105530.0,0.06894462]
[1749974792153,1.51390321,105540.0,105530.0,0.02978462]
[1749974792369,1.51390321,105540.0,105530.0,0.01199597]
[1749974792581,1.51390321,105540.0,105530.0,0.06894462]
[1749974792788,1.51390321,105540.0,105530.0,0.05115597]
[1749974793023,1.51390321,105540.0,105530.0,0.02978462]
[1749974793228,1.51390321,105540.0,105530.0,0.06894462]
[1749974793452,1.51390321,105540.0,105530.0,0.05115597]
[1749974793676,1.51390321,105540.0,105530.0,0.06894462]
[1749974793898,1.51390321,105540.0,105530.0,0.05115597]
[1749974794113,1.51390321,105540.0,105530.0,0.06894462]
[1749974794549,1.51390321,105540.0,105530.0,0.05115597]
[1749974794758,1.51390321,105540.0,105530.0,0.06894462]
[1749974794963,1.51390321,105540.0,105530.0,0.05115597]
[1749974795178,1.51390321,105540.0,105530.0,0.06894462]
[1749974795399,1.51390321,105540.0,105530.0,0.05946865]
[1749974795779,1.54640321,105540.0,105530.0,0.05946865]
[1749974795934,1.54640321,105540.0,105530.0,0.02030919]
[1749974796135,1.54640321,105540.0,105530.0,0.04164]
[1749974796345,1.54640321,105540.0,105530.0,0.05942921]
[1749974796544,1.54640321,105540.0,105530.0,0.04164]
[1749974796794,1.54640321,105540.0,105530.0,0.05942921]
[1749974796997,1.54640321,105540.0,105530.0,0.04164]
[1749974797596,1.54640321,105540.0,105530.0,0.05942922]
[1749974797816,1.54640321,105540.0,105530.0,0.04164]
[1749974798019,1.69952321,105540.0,105530.0,0.02030922]
[1749974798215,1.69952321,105540.0,105530.0,0.00252]
[1749974798422,1.69952321,105540.0,105530.0,0.05942922]
[1749974798777,1.69952321,105540.0,105530.0,0.04164]
[1749974798983,1.69952321,105540.0,105530.0,0.05942922]
[1749974799215,1.69952321,105540.0,105530.0,0.05942008]
[1749974799440,1.69952321,105540.0,105530.0,0.04164]
[1749974799846,1.69952321,105540.0,105530.0,0.05942008]
[1749974800503,1.69952321,105540.0,105530.0,0.04164]
[1749974800713,1.69952321,105540.0,105530.0,0.05942007]
[1749974800918,1.69952321,105540.0,105530.0,0.04164]
[1749974801110,1.69952321,105540.0,105530.0,0.05942007]
[1749974801331,1.67108037,105540.0,105530.0,0.0594203]
[1749974801956,1.67108037,105540.0,105530.0,0.05942042]
[1749974802326,1.67108037,105540.0,105530.0,0.04164]
[1749974802532,1.67108037,105540.0,105530.0,0.05942047]
[1749974802962,1.67108037,105540.0,105530.0,0.05942048]
[1749974803533,1.67108037,105540.0,105530.0,0.04164]
[1749974803739,1.67108037,105540.0,105530.0,0.05942048]
[1749974804120,0.78176657,105540.0,105530.0,0.05942048]
[1749974804345,1.67108037,105540.0,105530.0,0.05942048]
[1749974804959,1.67108037,105540.0,105530.0,0.04164]
[1749974805345,1.67108037,105540.0,105530.0,0.00252]
[1749974805570,1.82415862,105540.0,105530.0,0.01191048]
[1749974806043,1.78626763,105540.0,105530.0,0.01191048]
[1749974806301,0.57019535,105530.0,105520.0,0.03912]
[1749974806522,1.10392758,105530.0,105520.0,0.03912]
[1749974806732,1.25704758,105530.0,105520.0,0.03912]
[1749974808305,1.25804758,105530.0,105520.0,0.03912]
[1749974808697,1.25904758,105530.0,105520.0,0.04012]
[1749974810505,1.32686603,105530.0,105520.0,0.001]
[1749974810714,1.38370252,105530.0,105520.0,0.001]
[1749974814651,0.93904562,105530.0,105520.0,0.001]
[1749974814857,1.38370252,105530.0,105520.0,0.001]
[1749974815757,1.32686603,105530.0,105520.0,0.001]
[1749974816442,1.38370252,105530.0,105520.0,0.001]
[1749974818780,1.32686603,105530.0,105520.0,0.001]
[1749974819005,1.38370252,105530.0,105520.0,0.001]
[1749974821343,1.82835942,105530.0,105520.0,0.001]
[1749974821988,0.5485104,105510.0,105500.0,0.14757936]
[1749974822210,1.46057847,105510.0,105500.0,0.14757936]
[1749974822418,1.46057847,105510.0,105500.0,0.13137936]
[1749974822626,1.46057847,105510.0,105500.0,0.11637936]
[1749974822833,1.46553074,105510.0,105500.0,0.11637936]
[1749974823039,1.66295498,105510.0,105500.0,0.00167]
[1749974823248,1.69131188,105510.0,105500.0,0.00167]
[1749974824105,1.69131188,105510.0,105500.0,0.00367]
[1749974824347,1.78755364,105510.0,105500.0,0.00367]
[1749974824576,1.80365364,105510.0,105500.0,0.00667]
[1749974825057,1.80265364,105510.0,105500.0,0.00167]
[1749974825498,1.80265364,105510.0,105500.0,0.00267]
[1749974825499,1.80365364,105510.0,105500.0,0.00267]
[1749974825709,1.87003098,105510.0,105500.0,0.00267]
[1749974825916,1.83113323,105510.0,105500.0,0.00167]
[1749974826168,1.83113323,105510.0,105500.0,0.00267]
[1749974826385,1.87090383,105510.0,105500.0,0.00267]
[1749974827451,1.87290383,105510.0,105500.0,0.00267]
[1749974828829,2.33756073,105510.0,105500.0,0.00267]
[1749974829192,2.29979013,105510.0,105500.0,0.00267]
[1749974831487,2.32829313,105510.0,105500.0,0.00267]
[1749974831935,1.12886374,105490.0,105480.0,0.38802936]
[1749974832164,1.76948204,105490.0,105480.0,0.07558936]
[1749974832417,1.8072184,105490.0,105480.0,0.02653462]
[1749974832644,1.77891613,105490.0,105480.0,0.02653462]
[1749974832865,0.99324637,105470.0,105460.0,0.14648936]
[1749974833079,1.16944064,105470.0,105460.0,0.14648936]
[1749974833315,1.16948802,105470.0,105460.0,0.14648936]
[1749974833776,1.17905166,105470.0,105460.0,0.14648936]
[1749974834193,1.17905166,105470.0,105460.0,0.09108936]
[1749974834833,1.17905166,105470.0,105460.0,0.10708936]
[1749974835036,1.17905166,105470.0,105460.0,0.09108936]
[1749974835243,1.18005166,105470.0,105460.0,0.07958936]
[1749974835451,1.14672666,105470.0,105460.0,0.07958936]
[1749974835660,1.24296842,105470.0,105460.0,0.004]
[1749974836091,0.67819652,105470.0,105460.0,0.004]
[1749974836330,1.25664074,105470.0,105460.0,0.004]
[1749974836545,1.22834842,105470.0,105460.0,0.004]
[1749974836751,1.25664074,105470.0,105460.0,0.004]
[1749974836982,1.10272074,105470.0,105460.0,0.004]
[1749974837216,1.25664074,105470.0,105460.0,0.004]
[1749974837878,1.16043898,105470.0,105460.0,0.23542753]
[1749974838081,1.13709893,105470.0,105460.0,0.24490961]
[1749974838286,1.12761802,105470.0,105460.0,0.23542753]
[1749974838490,1.11813684,105470.0,105460.0,0.23542753]
[1749974838809,1.11809684,105470.0,105460.0,0.23542753]
[1749974839017,1.11809684,105470.0,105460.0,0.24490961]
[1749974839447,1.11809684,105470.0,105460.0,0.2543916]
[1749974839663,1.12757802,105470.0,105460.0,0.2638735]
[1749974840102,1.12757802,105470.0,105460.0,0.24490961]
[1749974841061,0.97365802,105470.0,105460.0,0.24490961]
[1749974841275,1.15587034,105470.0,105460.0,0.2543916]
[1749974841926,0.60571844,105470.0,105460.0,0.26387341]
[1749974842137,1.15587034,105470.0,105460.0,0.2543916]
[1749974843005,1.15587034,105470.0,105430.0,0.28760078]
[1749974843006,0.34,105440.0,105430.0,0.28760078]
[1749974843238,0.20862899,105450.0,105430.0,0.28760078]
[1749974843239,0.02275427,105450.0,105440.0,0.23894918]
[1749974843477,0.93186961,105460.0,105450.0,0.0303]
[1749974843664,0.57136361,105460.0,105450.0,0.25517972]
[1749974843946,1.13099723,105460.0,105450.0,0.26466252]
[1749974844159,0.97707723,105460.0,105450.0,0.23892921]
[1749974844816,0.96759551,105460.0,105450.0,0.23892939]
[1749974845029,0.95911361,105460.0,105450.0,0.24392939]
[1749974845249,1.11311361,105460.0,105450.0,0.25341228]
[1749974845458,0.95911361,105460.0,105450.0,0.25341228]
[1749974845662,0.95911361,105460.0,105450.0,0.26289508]
[1749974845867,1.11311361,105460.0,105450.0,0.26289508]
[1749974846069,0.96859542,105460.0,105450.0,0.27437779]
[1749974846278,1.12259542,105460.0,105450.0,0.27437779]
[1749974846501,0.96859542,105460.0,105450.0,0.27437779]
[1749974846920,0.96859542,105460.0,105450.0,0.26489508]
[1749974847126,1.12259542,105460.0,105450.0,0.26489508]
[1749974847329,1.15085149,105460.0,105450.0,0.26489508]
[1749974847533,1.15097149,105460.0,105450.0,0.26489508]
[1749974848165,0.99685149,105460.0,105450.0,0.26489508]
[1749974848371,1.15097149,105460.0,105450.0,0.26489508]
[1749974848582,1.15097149,105460.0,105450.0,0.25541228]
[1749974848793,1.14148968,105460.0,105450.0,0.25541228]
[1749974849257,1.1320076,105460.0,105450.0,0.24592939]
[1749974849681,1.1320076,105460.0,105450.0,0.23644641]
[1749974849887,1.1320076,105460.0,105450.0,0.24534717]
[1749974850318,0.7357757,105460.0,105450.0,0.24534724]
[1749974850527,0.9778876,105460.0,105450.0,0.23644641]
[1749974850733,0.9778876,105460.0,105450.0,0.24534724]
[1749974850940,0.5816557,105460.0,105450.0,0.23644641]
[1749974851143,0.9778876,105460.0,105450.0,0.24534724]
[1749974851794,1.01562396,105460.0,105450.0,0.24592939]
[1749974852006,1.16994396,105460.0,105450.0,0.25483022]
[1749974852211,1.01562396,105460.0,105450.0,0.25483022]
[1749974852435,1.16990396,105460.0,105450.0,0.25483022]
[1749974852645,1.16990396,105460.0,105450.0,0.26431311]
[1749974852867,1.16990396,105460.0,105450.0,0.25483022]
[1749974853072,1.01562396,105460.0,105450.0,0.25483022]
[1749974853279,1.16994396,105460.0,105450.0,0.25483022]
[1749974853707,1.17006396,105460.0,105450.0,0.24592939]
[1749974853888,1.01562396,105460.0,105450.0,0.25483022]